Cogmind - Beta 15 @@@ ROGUE MODE // 2025.07.27 @ 01:21:19 Player: jumpy Result: Destroyed by P-60 Hacker with Shock Rifle Performance ------------- Evolutions (3) 1500 Regions Visited (4) 800 Robots Destroyed (99) 495 Value Destroyed (2925) 2925 Prototype IDs (4) 80 Alien Tech Used (0) 0 Bonus (145) 145 TOTAL SCORE: 5945 Bonus ------- High Alert Combat Kills 145 Cogmind --------- Core Integrity 0/700 Matter 44/300 Energy 146/160 System Corruption 4% Temperature Cool (4) Movement Walking (127) Location -7/Factory Parts ------- > --- POWER (1) -------- Light Nuclear Core > --- PROPULSION (4) --- Improved Carbon-fiber Leg Improved Titanium Leg Improved Titanium Leg Improved Titanium Leg > --- UTILITY (5) ------ Large Storage Unit Improved Signal Interpreter Advanced Targeting Computer Improved Melee Analysis Suite Improved Light Armor Plating > --- WEAPON (3) ------- Cooled Particle Cannon Cooled Particle Cannon Chainsword > --- INVENTORY (15) --- Aluminum Leg Improved Terrain Scan Processor Seismic Detector Heavy Rocket Launcher Peak State ------------ > --- POWER ------------ Light Nuclear Core > --- PROPULSION ------- Improved Carbon-fiber Leg Improved Titanium Leg Improved Titanium Leg Improved Titanium Leg > --- UTILITY ---------- Small Storage Unit Improved Signal Interpreter Advanced Targeting Computer Improved Melee Analysis Suite Improved Light Armor Plating > --- WEAPON ----------- Cooled Particle Cannon Cooled Particle Cannon Chainsword > --- INVENTORY -------- Improved Terrain Scan Processor Seismic Detector Rocket Launcher Heavy Rocket Launcher [Rating: 48] Favorites ----------- Power Light Nuclear Core Engine Cooled Ion Engine Power Core Light Nuclear Core Propulsion Carbon-fiber Leg Leg Carbon-fiber Leg Wheel Wheel Hover Unit Gravmag System Utility Large Storage Unit Device Seismic Detector Storage Large Storage Unit Processor Improved Signal Interpreter Hackware Hacking Suite Protection Improved Medium Armor Plating Weapon Autogun Energy Cannon Cooled Particle Cannon Ballistic Gun Autogun Launcher Rocket Launcher Slashing Weapon Chainsword Build | -11 -10 -9 -8 -7 ------- Run | Yrd Mat Mat Mat Fac Slots Evolved 6 | . . 2 2 2 Power . | . . . . . Propulsion 2 | . . 1 1 . Utility 3 | . . 1 1 1 Weapon 1 | . . . . 1 Parts Attached 64 | 7 1 10 7 39 Power 9 | 1 1 2 . 5 Engine 5 | 1 1 2 . 1 Core 4 | . . . . 4 Reactor . | . . . . . Propulsion 25 | 2 . 4 2 17 Treads . | . . . . . Leg 17 | 2 . 4 2 9 Wheel 2 | . . . . 2 Hover 6 | . . . . 6 Flight . | . . . . . Utility 18 | 2 . 1 4 11 Device 6 | 1 . . 3 2 Storage 4 | 1 . 1 . 2 Processor 3 | . . . . 3 Hackware 1 | . . . . 1 Protection 4 | . . . 1 3 Artifact . | . . . . . Weapon 12 | 2 . 3 1 6 Energy Gun . | . . . . . Energy Cannon 2 | . . . . 2 Ballistic Gun 7 | 2 . 2 1 2 Ballistic Cannon . | . . . . . Launcher 1 | . . 1 . . Special Weapon . | . . . . . Impact Weapon . | . . . . . Slashing Weapon 2 | . . . . 2 Piercing Weapon . | . . . . . Special Melee Weapon . | . . . . . Unidentified Prototypes 4 | . . 2 . 2 Parts Lost 29 | . . 1 1 27 Power 4 | . . . . 4 Propulsion 15 | . . 1 . 14 Utility 5 | . . . . 5 Weapon 5 | . . . 1 4 Highest Loss Streak 6 | . . 1 1 6 To Critical Strikes . | . . . . . Average Backups 9 | 4 7 11 15 8 Power 1 | . 1 1 2 . Propulsion 1 | 1 2 2 4 1 Utility 3 | . 2 2 4 3 Weapon 3 | 1 2 4 4 2 Tool/Special . | . . . . . Unused Backups 15 | . . 5 1 9 Power 3 | . . 1 . 2 Propulsion 3 | . . 1 . 2 Utility 4 | . . 1 . 3 Weapon 5 | . . 2 1 2 Tool/Special . | . . . . . Average Slot Usage (%) 87 | . 100 79 86 88 Engine 5 | . 14 8 9 3 Core 2 | . . . . 2 Leg 23 | . 28 27 29 22 Hover 2 | . . . . 2 Device 11 | . 14 11 15 10 Storage 8 | . 14 11 9 7 Processor 6 | . . . . 8 Protection 5 | . . . 6 6 Energy Cannon 3 | . . . . 4 Ballistic Gun 12 | . 28 21 17 9 Slashing Weapon 4 | . . . . 5 Peak Build Rating 48 | 7 8 17 26 48 Average Rating 29 | 6 7 11 19 37 On Entrance 11 | . 7 7 17 26 Naked Turns . | . . . . . Heaviest Build 51 | 14 14 35 39 51 Greatest Support 78 | 20 20 35 50 78 Greatest Overweight (x) 8 | . . 1 1 8 Average Overweight (x) . | . . . . . Largest Inventory Capacity 15 | 8 8 15 15 15 Average Capacity 12 | 7 8 13 15 12 Most Carried 15 | 7 8 15 15 15 Average Carried 9 | 4 7 11 14 8 Final Capacity 15 | 8 8 15 15 15 Final Carried 15 | 7 7 15 15 4 Class Distribution -------------------- 65% | Mutant 20% | Scavenger-Tank 10% | Scavenger-Mutant Dominant Class ---------------- Mutant | -10/Materials Mutant | -9/Materials Scavenger-Mutant | -8/Materials Mutant | -7/Factory Resources | -11 -10 -9 -8 -7 ----------- Run | Yrd Mat Mat Mat Fac Matter Collected 1799 | 350 50 362 318 719 Remotely . | . . . . . Salvage Created 3241 | 268 127 624 344 1878 Parts 215 | 25 12 51 27 100 Haulers Intercepted 4 | . 1 2 . 1 Recyclers Shooed 2 | 1 . . . 1 Parts Field Recycled . | . . . . . Retrieved Matter . | . . . . . Parts Self-Destructed . | . . . . . Prevented . | . . . . . Kills | -11 -10 -9 -8 -7 ------- Run | Yrd Mat Mat Mat Fac Combat Hostiles Destroyed 66 | . 6 14 6 40 Melee 18 | . . . . 18 Guns 29 | . 6 10 6 7 Cannons 1 | . . . . 1 AOE 18 | . . 4 . 14 Classes Destroyed 12 | 3 2 3 1 3 Worker 9 | 1 . 1 1 6 Builder 2 | . . . . 2 Tunneler 8 | 8 . . . . Hauler 4 | . 1 2 . 1 Recycler 6 | 1 . 1 . 4 Mechanic 1 | . . . . 1 Watcher 3 | . . 2 . 1 Swarmer 25 | . 6 4 . 15 Grunt 25 | . . 8 3 14 Duelist 2 | . . 2 . . Sentry 8 | . . . 3 5 Programmer 6 | . . . . 6 Best Kill Streak 8 | 4 4 8 4 8 Combat Bots Only 7 | . 4 7 3 6 Max Kills in Single Turn 3 | 1 1 3 1 3 Gunslinging 1 | . . 1 . . Exploded 2 | . . 2 . 2 Melee 1 | . . . . 1 Uniques/NPCs Destroyed . | . . . . . Combat | -11 -10 -9 -8 -7 -------- Run | Yrd Mat Mat Mat Fac Hostile Shots Fired 661 | . 38 72 39 512 Missed 246 | . 7 29 9 201 Hits 415 | . 31 43 30 311 Melee 3 | . . 3 . . Projectile 412 | . 31 40 30 311 Critical Strikes 12 | . . 1 2 9 Damage Taken 5073 | . 255 519 477 3822 Core 937 | . 15 141 81 700 Absorbed by Shields 4 | . . . . 4 Regen/Repaired (Parts) 173 | . . . . 173 Core Remaining (%) 85 | 100 94 64 85 . Volleys Fired 161 | 20 29 36 21 55 Largest 3 | 2 2 2 2 3 Hottest 90 | 40 40 56 46 90 Shots Fired 324 | 40 58 71 42 113 Gun 297 | 40 58 69 42 88 Cannon 9 | . . . . 9 Launcher 18 | . . 2 . 16 Special . | . . . . . Kinetic 297 | 40 58 69 42 88 Thermal 9 | . . . . 9 Explosive 18 | . . 2 . 16 Electromagnetic . | . . . . . Robot Hit Streak 15 | 7 4 15 10 9 Robot Miss Streak 6 | 2 5 4 4 6 Penetration Max . | . . . . . Secondary Targets 3 | . . 2 . 1 Max Gunslinging Chain 1 | . . 1 . 1 Shots Hit Robots 254 | 21 28 46 29 130 Core Hits 138 | 13 10 28 15 72 Critical Kills 1 | . . . . 1 Critical Parts Destroyed 1 | . . 1 . . Critical Strikes 12 | . . 1 . 11 Destroy 2 | . . 1 . 1 Sever 10 | . . . . 10 Melee Attacks 89 | . . . . 89 Impact . | . . . . . Slashing 89 | . . . . 89 Piercing . | . . . . . Sneak Attacks 12 | . . . . 12 Combat Hostiles . | . . . . . Follow-up Attacks 3 | . . . . 3 Damage Inflicted 7717 | 230 318 1014 443 5712 Guns 2544 | 230 318 678 443 875 Cannons 139 | . . . . 139 Explosions 2126 | . . 336 . 1790 Melee 2877 | . . . . 2877 Ramming 31 | . . . . 31 Kinetic 2544 | 230 318 678 443 875 Thermal 566 | . . . . 566 Explosive 1699 | . . 336 . 1363 Electromagnetic . | . . . . . Impact . | . . . . . Slashing 2877 | . . . . 2877 Piercing . | . . . . . Highest Corruption 4 | . . . . 4 Average Corruption 2 | . . . . 2 Corruption Purged . | . . . . . Corruption Blocked . | . . . . . Effects 34 | . . . . 34 Message Errors 7 | . . . . 7 Matter Fused 9 | . . . . 9 Heat Flow Errors 7 | . . . . 7 Energy Discharges 8 | . . . . 8 Parts Rejected 1 | . . . . 1 Misfires 1 | . . . . 1 Alerts 1 | . . . . 1 Overload Shots 2 | . . . . 2 Overflow Damage 529 | . . 20 . 509 Projectiles . | . . . . . Explosions 115 | . . 20 . 95 Melee 414 | . . . . 414 Knockbacks . | . . . . . Impact . | . . . . . Kinetic . | . . . . . Secondary . | . . . . . Self-Inflicted Damage 322 | . . . . 322 Shots 8 | . . . . 8 Rammed . | . . . . . Targets Rammed 5 | . . . . 5 Kicked 5 | . . . . 5 Crushed . | . . . . . Highest Temperature 241 | . . 27 24 241 Average Temperature 50 | . . 7 9 79 Received Heat Transfer 1605 | . . 180 270 1155 Siege Activations . | . . . . . Martial Activations . | . . . . . Shielding Activations . | . . . . . Robots Disrupted . | . . . . . Combat Hostiles . | . . . . . Robots Corrupted . | . . . . . Combat Hostiles . | . . . . . Parts Fried . | . . . . . Impact Corruptions . | . . . . . Robots Melted . | . . . . . Combat Hostiles . | . . . . . Parts Melted . | . . . . . Heat Transferred 535 | . . . . 535 Parts Sabotaged . | . . . . . Parts Stolen . | . . . . . Parts Stripped . | . . . . . Power Chain Reactions . | . . . . . Alert | -11 -10 -9 -8 -7 ------- Run | Yrd Mat Mat Mat Fac Maximum Alert Level 3 | . . 1 . 3 Low Security (%) 68 | 100 100 68 100 58 Level 1 11 | . . 31 . 11 Level 2 7 | . . . . 10 Level 3 13 | . . . . 19 Level 4 . | . . . . . Level 5 . | . . . . . High Security . | . . . . . Max Security . | . . . . . Peak Influence 1069 | 10 115 291 137 1069 Initial 112 | . . 29 112 48 Average 235 | 2 55 106 100 310 Influence Increases 2599 | 50 174 419 165 1791 Destroy 0b10 Robot/C 1320 | . 120 280 120 800 Destroy 0b10 Robot/NC 165 | 50 5 30 5 75 Destroy Leader 314 | . 22 48 40 204 Successful Hack 42 | . 12 4 . 26 Disable Machine 420 | . . 45 . 375 Destroy Structure 143 | . . 12 . 131 Lose Combat Pursuer 195 | . 15 . . 180 Influence Decreases 1536 | 50 102 224 325 835 Entered New Map 257 | . . 43 155 59 Time Decay 995 | 50 102 171 160 512 Lost Part 284 | . . 10 10 264 Squads Dispatched 18 | . . 1 . 17 Investigation 3 | . . 1 . 2 Extermination 5 | . . . . 5 Reinforcement 5 | . . . . 5 Assault 1 | . . . . 1 Garrison 4 | . . . . 4 Intercept . | . . . . . Searches Triggered . | . . . . . Construction Impeded . | . . . . . Haulers Reinforced . | . . . . . Active Scanning Responses . | . . . . . Cargo Convoy Interrupts . | . . . . . Stealth | -11 -10 -9 -8 -7 --------- Run | Yrd Mat Mat Mat Fac Distress Signals 4 | . . 2 . 2 Communications Jammed . | . . . . . Distress Signals . | . . . . . Times Spotted 99 | . 8 20 6 65 Peak Tracking Total 8 | . 3 8 4 6 Tactical Retreats 9 | . 1 . . 8 Traps | -11 -10 -9 -8 -7 ------- Run | Yrd Mat Mat Mat Fac Traps Triggered 2 | . . 1 . 1 Indirectly . | . . . . . Trap Hack Attempts . | . . . . . Triggered . | . . . . . Disarmed . | . . . . . Reprogrammed . | . . . . . Reused . | . . . . . Traps Extracted . | . . . . . Installed . | . . . . . Triggered . | . . . . . Machines | -11 -10 -9 -8 -7 ---------- Run | Yrd Mat Mat Mat Fac Machines Disabled 28 | . . 3 . 25 Max in Single Turn 9 | . . 1 . 9 Garrison Access 1 | . . . . 1 Machines Repaired . | . . . . . Machines Dismantled . | . . . . . Machines Sabotaged . | . . . . . Overloaded Fab Kills . | . . . . . Hacking | -11 -10 -9 -8 -7 --------- Run | Yrd Mat Mat Mat Fac Machines Accessed 7 | . 1 1 . 5 Terminals 2 | . 1 1 . . Fabricators 1 | . . . . 1 Repair Stations 2 | . . . . 2 Recycling Units . | . . . . . Scanalyzers 1 | . . . . 1 Garrison Access 1 | . . . . 1 Total Hacks 13 | . 2 3 . 8 Successful 10 | . 1 2 . 7 Failed 3 | . 1 1 . 1 Catastrophic 1 | . 1 . . . Database Lockouts . | . . . . . Manual 2 | . . 1 . 1 Terminals 5 | . 2 3 . . Fabricators 1 | . . . . 1 Repair Stations 3 | . . . . 3 Recycling Units . | . . . . . Scanalyzers 3 | . . . . 3 Garrison Access 1 | . . . . 1 Terminal Hacks 2 | . 1 1 . . Dispatch Records 1 | . . 1 . . Maintenance Status 1 | . 1 . . . Fabricator Hacks 1 | . . . . 1 Build 1 | . . . . 1 Repair Station Hacks 2 | . . . . 2 Scan Component 1 | . . . . 1 Repair 1 | . . . . 1 Recycling Unit Hacks . | . . . . . Scanalyzer 2 | . . . . 2 Insert Component 1 | . . . . 1 Analyze 1 | . . . . 1 Garrison Access Hacks 1 | . . . . 1 Seal Access 1 | . . . . 1 Unauthorized Hacks 2 | . . 1 . 1 Terminals 1 | . . 1 . . Botnet 1 | . . 1 . . Fabricators . | . . . . . Repair Stations 1 | . . . . 1 Patch 1 | . . . . 1 Recycling Units . | . . . . . Scanalyzers . | . . . . . Garrison Access . | . . . . . Data Cores Recovered . | . . . . . Used . | . . . . . Hacking Detections 4 | . 1 1 . 2 Full Trace Events 1 | . . . . 1 Feedback Events . | . . . . . Feedback Blocked . | . . . . . Robot Schematics Acquired . | . . . . . Robots Built . | . . . . . Authchips . | . . . . . Time . | . . . . . Total Robot Build Rating . | . . . . . Part Schematics Acquired 1 | . . . . 1 Parts Built 2 | . . . . 2 Authchips . | . . . . . Time 42 | . . . . 42 Total Part Build Rating 8 | . . . . 8 Parts Repaired 1 | . . . . 1 Time 13 | . . . . 13 Parts Recycled . | . . . . . Recycled Matter . | . . . . . Retrieved Matter . | . . . . . Retrieved Components . | . . . . . Parts Scanalyzed 1 | . . . . 1 Part Schematics Acquired 1 | . . . . 1 Parts Damaged . | . . . . . Bothacking | -11 -10 -9 -8 -7 ------------ Run | Yrd Mat Mat Mat Fac Used RIF Installer . | . . . . . Robots Hacked . | . . . . . Non-combat . | . . . . . Combat . | . . . . . Robot Hacks Applied . | . . . . . Relay Couplers Released . | . . . . . Fabnet Peak Effective % . | . . . . . Robots Rewired . | . . . . . Allies Hacked . | . . . . . Hacks Repelled . | . . . . . Allies | -11 -10 -9 -8 -7 -------- Run | Yrd Mat Mat Mat Fac Total Allies . | . . . . . Largest Group . | . . . . . Highest-Rated Group . | . . . . . Highest-Rated Ally . | . . . . . Total Orders . | . . . . . Ally Attacks . | . . . . . Total Damage . | . . . . . Kills . | . . . . . Allies Corrupted . | . . . . . Allies Melted . | . . . . . Intel | -11 -10 -9 -8 -7 ------- Run | Yrd Mat Mat Mat Fac Active Infowar (turns) 2806 | 207 241 447 336 1575 Sensors 320 | . . . . 320 Terrain 895 | . . . . 895 Seismic 2486 | 207 241 447 336 1255 Robot Analysis Total . | . . . . . Derelict Logs Recovered . | . . . . . Drone Launches . | . . . . . Drone Recoveries . | . . . . . Exploration | -11 -10 -9 -8 -7 ------------- Run | Yrd Mat Mat Mat Fac Turns Passed 4118 | 274 241 447 336 2820 Spaces Moved 2532 | 171 131 197 187 1846 Core 6 | 5 . . . 1 Treads . | . . . . . Legs 2056 | 166 131 197 187 1375 Wheels 24 | . . . . 24 Hover 446 | . . . . 446 Flight . | . . . . . Fastest Speed 48 | 50 120 120 120 48 Average Speed 124 | 117 120 160 143 119 Slowest Speed 450 | 120 120 190 190 450 Overloaded Moves . | . . . . . Propulsion Burnouts . | . . . . . Robots Hopped . | . . . . . Potential Cave-ins . | . . . . . Cave-ins Triggered . | . . . . . Exploration Rate (%) 25 | 6 35 24 21 39 Regions Visited 4 Branch Regions . Pre-discovered Areas . | . . . . . Known Exits Taken . | . . . . . Unknown Exits Taken 4 | 1 1 1 1 . Scrap Searched . | . . . . . Spaces Dug 3 | . . . . 3 Terrain Destroyed 192 | . . 16 . 176 Melee 3 | . . . . 3 Projectile 1 | . . . . 1 AOE 188 | . . 16 . 172 Terrain Rammed . | . . . . . Walls Destroyed . | . . . . . Machines Disabled . | . . . . . Actions | -11 -10 -9 -8 -7 --------- Run | Yrd Mat Mat Mat Fac Total 3100 | 204 162 270 222 2242 Wait 174 | . 1 1 . 172 Move 2528 | 170 130 196 186 1846 Hop . | . . . . . Pick Up 36 | 7 . 15 2 12 Fast Attach 35 | 7 . 3 3 22 Attach 19 | . . 1 1 17 Detach 2 | . . . . 2 Swap 23 | . 1 7 4 11 Drop 32 | . 1 11 5 15 Fire 161 | 20 29 36 21 55 Melee 84 | . . . . 84 Ram . | . . . . . Kick 5 | . . . . 5 Crush . | . . . . . Escape Stasis 1 | . . . . 1 Rewire . | . . . . . Trap . | . . . . . Miscellaneous . | . . . . . Route ------- -11/Scrapyard -10/Materials -9/Materials -8/Materials -7/Factory History --------- Turn | Location | Event 3 | -11/Scrapyard | Discovered new exit (range 15) 275 | -11/Scrapyard | Entered Materials 314 | -10/Materials | Build established: Mutant 498 | -10/Materials | Discovered new exit (range 15) 516 | -10/Materials | Entered another Materials area 516 | -9/Materials | Evolved 2 slots: Propulsion x1, Utility x1 846 | -9/Materials | Destroyed 7 combat bots 889 | -9/Materials | Discovered new exit (range 8) 963 | -9/Materials | Entered another Materials area 963 | -8/Materials | Evolved 2 slots: Propulsion x1, Utility x1 1291 | -8/Materials | Discovered new exit (range 5) 1299 | -8/Materials | Entered Factory 1299 | -7/Factory | Evolved 2 slots: Utility x1, Weapon x1 1325 | -7/Factory | Repaired Lgt. Armor Plating 1684 | -7/Factory | Garrison activated, responded to threat 1874 | -7/Factory | Build established: Scavenger-Tank 2599 | -7/Factory | Build established: Mutant 2663 | -7/Factory | Fabricated Energy Filter? 2826 | -7/Factory | Lost 6 parts (1p3n1u1w) 2914 | -7/Factory | Lost 5 parts (2p1n2u) 2921 | -7/Factory | Core integrity fell below 50% 3278 | -7/Factory | Core integrity fell below 20% 3307 | -7/Factory | Lost 5 parts (1p2n1u1w) 4099 | -7/Factory | First assault squad dispatched 4119 | -7/Factory | Destroyed by P-60 Hacker with Shock Rifle Last Messages --------------- 03815_ Acquired 23 matter. 03822_ Sneak attack on U-05 Engineer. 03822_ Destroyed Wheel. 03830_ System corrupted: Matter fused (-6). 03915_ Dropped Sml. Storage Unit. 03943_ System corrupted: Matter fused (-7). 04007_ System corrupted: Heat flow error (+223). 04013_ Triggered Stasis Trap. 04013_ A bubble of rippling energy engulfs the area. 04013_ Field strength at 67. 04014_ Field strength at 34. 04015_ Stasis field depleted. 04044_ G-47 Trooper destroyed. 04052_ Acquired 44 matter. 04063_ Acquired Aluminum Leg. 04099_ ALERT: Unidentified disturbance in Zone 2A, assault force dispatched. 04100_ K-01 Serf cleans the Matter Pump. 04116_ Matter Pump disabled. 04119_ K-01 Serf cleans the Matter Pump. Map ----- +----------------------------------------------------+ | # """ """ # # #?????????# #??# #?? | | # """ """ # ? # +?????????######??# #?? | | # """ """ #?? # #?????????????????# #?? | | # #?? [ # #???????????????### #?? | | # #?? + #????????????? # #?? | | # #?? # #??????"""""" # #?? | | ####+#########??#+## #??? # #?? | | #??# #??????????# #? """"""""" # #?? | | #??# #% ????????# ##! # #?? | | #??# # ??????# """ #? """"""""" # #?? | | #??# # ????# """ #??? ?# #?? | | #??# # ??# """ #?????""""""" ???# #?? | | #??# # # #??????? ?????# #?? | | #??# # = + ] #######+##+######## #?? | | #??# # # #?? | | #### ############ ####?? | | """ """ """ """ """ #????? | | ########## """ """ """ """ """ #????? | | #????????# """ """ """ """ """ #????? | | #????????# k * ####?? | | #????????# """ """ """ """ """ #?? | | ########????????# """ """ """ """ """ #?? | | #???????????##### """ """ """ """ """ #?? | | #???????????# #?? | | ????????????# """ """ """ """ """ #?? | | ??????????????# """@""" """ """ """ #?? | | ???????????????# ""% """ """ """ """ #?? | | ???????????????# p #?? | | ???????????????# #?? | | ???????????????# #?? | | ???????????????# #####+################# #?? | | ???????????????# # !% #?????# #?? | | ???????????????# # ###???# #?? | | ???????????????# # #% ??# #?? | | ???????????????# # # ??# #?? | | ???????######### # """""" """""" # ## ##? | | ???????# """ + + """""" """"""?#[ # #? | | ???????# "T" # # """""" """"""?# + " #? | | ???????# =# # """""" """????# # #? | | ???????# ?# # ? ?? ????# ## ##? | | ???????# """" ?# #???????? ?????# ## #?? | | ???????# """"??# #?????????#?????# /! #?? | | ???????# """"??# #???????????????#######/##? | | ?????????"""???# #?????????????????# *[% | | ???????????"???# #?????????????????# [ | | ???????????????# ^ #?????????????????# | | ???????????????# ^ #?????????????????# | | ???????????????# #?????????????????# | | ???????????????# #?????????????????# | | ################ #?????????????????# | +----------------------------------------------------+ Best States ------------- Heat Dissipation 53 Energy Generation 18 Energy Capacity 310 Matter Stores 300 Matter Capacity 300 Sight Range 16 Robot Scan Range 15 Terrain Scan Range 16 Terrain Scan Density 10 Armor Coverage 225 Evasion (%) 55 Targeting Accuracy 8 Melee Accuracy 6 Offensive Hacking 10 Item Schematics ----------------- Minigun | -7/Factory | Scanalyzed Robot Schematics ------------------ None Fabricated ------------ Energy Filter | x2 | -7/Factory | Preloaded Repaired ---------- Lgt. Armor Plating | 5% | -7/Factory Alien Tech Used ----------------- None Achievements -------------- None Challenges ------------ None Game ------ Seed DimensionalTimingPurifier Manual? 0 Play Time 00:30:59 Cumulative 192.6 hours Start 2025.07.27 @ 00:52:22 End 2025.07.27 @ 01:21:19 Sessions 1 Manual Loads 0 Difficulty Rogue Special Mode None Game No. 466 Rogue 466 Adventurer 0 Explorer 0 Win Type - Total 8 Types 6/0/1/1/0/0/0/0/0/0 Lore% 74 Gallery% 66 Achievement% 51 Wizard Run 0 Options --------- Layout 0 ASCII 0 Keyboard 0 Movement Numpad Keybinds 0 Fullscreen 2 Font 18/Terminus Map View 76x50 Zoom Use 0% Tactical HUD 1 Map Filters NONE Filters SATURATION(100) Steam 1 RUN: efef736c-a1a9-4d23-b1b8-cf3cb03a7bf0